Cogmind - Beta 16 @@@ ROGUE MODE // 2026.01.24 @ 20:16:14 Player: Dew Result: Destroyed by YI-UF0 with YI-UF0's Doublenader Performance ------------- Evolutions (1) 500 Regions Visited (4) 800 Robots Destroyed (24) 120 Value Destroyed (608) 608 Prototype IDs (2) 40 Alien Tech Used (0) 0 Bonus (0) 0 TOTAL SCORE: 2068 Bonus ------- None Cogmind --------- Core Integrity 0/400 Matter 184/300 Energy 126/265 System Corruption 7% Temperature Cool (0) Movement Core (200) Ox3 Location -9/Mines Parts ------- > --- POWER (1) -------- Improved Ion Engine > --- PROPULSION (3) --- (None) > --- UTILITY (3) ------ (None) > --- WEAPON (2) ------- Beam Rifle Mining Claw > --- INVENTORY (5) ---- Mining Laser Peak State ------------ > --- POWER ------------ Light Ion Engine > --- PROPULSION ------- Flight Unit Flight Unit Flight Unit > --- UTILITY ---------- Sensor Array ECM Suite Reaction Control System > --- WEAPON ----------- Shotgun Improved Datajack > --- INVENTORY -------- Light Treads Grenade Launcher Mining Laser Mining Claw [Rating: 14] Favorites ----------- Power Improved Ion Engine Engine Improved Ion Engine Propulsion Light Treads Treads Light Treads Leg Aluminum Leg Flight Unit Flight Unit Utility ECM Suite Device ECM Suite Storage Small Storage Unit Processor Signal Interpreter Protection Light Armor Plating Weapon Improved Light Cannon Energy Gun Beam Rifle Ballistic Gun Shotgun Ballistic Cannon Improved Light Cannon Launcher Grenade Launcher Special Weapon Mining Laser Slashing Weapon Mining Claw Special Melee Weapon Improved Datajack Build | -11 -10 -10 -9 -9 ------- Run | Yrd Mat Min Mat Min Slots Evolved 2 | . . . 2 . Power . | . . . . . Propulsion 1 | . . . 1 . Utility 1 | . . . 1 . Weapon . | . . . . . Parts Attached 33 | . 5 1 23 4 Power 5 | . . . 4 1 Engine 5 | . . . 4 1 Core . | . . . . . Reactor . | . . . . . Propulsion 6 | . 2 . 4 . Treads 3 | . . . 3 . Leg . | . . . . . Wheel . | . . . . . Hover . | . . . . . Flight 3 | . 2 . 1 . Utility 9 | . 2 . 6 1 Device 4 | . 1 . 3 . Storage 1 | . . . . 1 Processor 1 | . 1 . . . Hackware . | . . . . . Protection 3 | . . . 3 . Artifact . | . . . . . Weapon 13 | . 1 1 9 2 Energy Gun 1 | . . . 1 . Energy Cannon . | . . . . . Ballistic Gun 4 | . . . 4 . Ballistic Cannon 3 | . . . 2 1 Launcher 1 | . . 1 . . Special Weapon 2 | . 1 . . 1 Impact Weapon . | . . . . . Slashing Weapon 1 | . . . 1 . Piercing Weapon . | . . . . . Special Melee Weapon 1 | . . . 1 . Unidentified Prototypes 2 | . . . 2 . Parts Lost 17 | . . . 9 8 Power 2 | . . . 1 1 Propulsion 4 | . . . 2 2 Utility 8 | . . . 5 3 Weapon 3 | . . . 1 2 Highest Loss Streak 8 | . . . 3 8 To Critical Strikes . | . . . . . Average Backups 4 | . 5 5 4 3 Power . | . 1 1 . . Propulsion . | . 3 2 . . Utility . | . . . . . Weapon 3 | . 1 2 3 2 Tool/Special . | . . . . . Unused Backups 3 | . . 2 1 . Power 1 | . . . 1 . Propulsion . | . . . . . Utility . | . . . . . Weapon 2 | . . 2 . . Tool/Special . | . . . . . Average Slot Usage (%) 89 | . 79 95 93 82 Engine 10 | . 14 14 10 10 Treads 16 | . . . 17 20 Flight 10 | . 12 28 14 . Device 14 | . 1 14 17 10 Storage 3 | . 8 . . 9 Processor 2 | . 5 14 2 . Protection 8 | . . . 9 10 Energy Gun 2 | . . . 3 . Ballistic Gun 6 | . 22 9 7 . Ballistic Cannon 8 | . . . 4 20 Launcher 1 | . . 4 2 . Special Weapon 1 | . . 9 . . Slashing Weapon 1 | . . . 1 . Peak Build Rating 14 | . 7 7 14 13 Average Rating 10 | . 5 6 11 11 On Entrance 7 | 6 6 7 6 10 Avg Prop Armor Cover (%) 2 | . . . 2 . Naked Turns 11 | . . . . 11 Heaviest Build 28 | 11 11 8 27 28 Greatest Support 60 | 20 20 8 60 40 Greatest Overweight (x) 3 | . 2 . 1 3 Average Overweight (x) . | . . . . . Largest Inventory Capacity 8 | . 8 5 5 8 Average Capacity 5 | . 6 5 5 7 Most Carried 7 | . 7 5 5 4 Average Carried 4 | . 5 5 4 3 Final Capacity 8 | 8 5 5 5 5 Final Carried 6 | 6 5 5 4 1 Class Distribution -------------------- 72% | Mutant 27% | Scavenger-Mutant Dominant Class ---------------- Mutant | -10/Materials Mutant | -10/Mines Mutant | -9/Materials Mutant | -9/Mines Resources | -11 -10 -10 -9 -9 ----------- Run | Yrd Mat Min Mat Min Matter Collected 876 | 200 . 60 471 145 Remotely . | . . . . . Salvage Created 616 | . . 32 576 8 Parts 55 | . . 3 50 2 Haulers Intercepted . | . . . . . Recyclers Shooed . | . . . . . Parts Field Recycled . | . . . . . Retrieved Matter . | . . . . . Parts Self-Destructed . | . . . . . Prevented . | . . . . . Parts Restored . | . . . . . Kills | -11 -10 -10 -9 -9 ------- Run | Yrd Mat Min Mat Min Combat Hostiles Destroyed 22 | . . 1 21 . Guns 14 | . . . 14 . Cannons 4 | . . . 4 . AOE 4 | . . 1 3 . Classes Destroyed 4 | . . 1 3 . Worker 2 | . . . 1 1 Swarmer 9 | . . . 9 . Grunt 9 | . . 1 8 . Sentry 4 | . . . 4 . Best Kill Streak 8 | . . 1 8 1 Combat Bots Only 7 | . . 1 7 . Max Kills in Single Turn 2 | . . 1 2 1 Gunslinging . | . . . . . Exploded 2 | . . 1 2 . Melee . | . . . . . Uniques/NPCs Destroyed . | . . . . . Combat | -11 -10 -10 -9 -9 -------- Run | Yrd Mat Min Mat Min Hostile Shots Fired 193 | . 2 7 158 26 Missed 54 | . . 5 38 11 Hits 139 | . 2 2 120 15 Projectile 139 | . 2 2 120 15 AOE 22 | . . . . 22 Critical Strikes 2 | . . . 2 . Damage Taken 2300 | . 22 33 1459 786 Core 441 | . 11 15 225 190 Absorbed by Shields . | . . . . . Core Remaining (%) 94 | 100 . 89 . . Volleys Fired 51 | . . 1 44 6 Largest 2 | . . 1 2 2 Hottest 100 | . . 30 100 100 Shots Fired 87 | . . 1 78 8 Gun 57 | . . . 57 . Cannon 21 | . . . 17 4 Launcher 3 | . . 1 2 . Special 6 | . . . 2 4 Kinetic 70 | . . . 66 4 Thermal 14 | . . . 10 4 Explosive 3 | . . 1 2 . Electromagnetic . | . . . . . Robot Hit Streak 9 | . . 1 9 4 Robot Miss Streak 3 | . . . 3 . Penetration Max . | . . . . . Secondary Targets . | . . . . . Shots Hit Robots 62 | . . 1 58 3 Core Hits 32 | . . 2 29 1 Critical Kills 3 | . . . 3 . Critical Parts Destroyed . | . . . . . Critical Strikes 4 | . . . 4 . Destroy 3 | . . . 3 . Blast 1 | . . . 1 . Melee Attacks 18 | . . . 18 . Impact . | . . . . . Slashing 15 | . . . 15 . Piercing . | . . . . . Sneak Attacks 4 | . . . 4 . Combat Hostiles . | . . . . . Follow-up Attacks . | . . . . . Damage Inflicted 1263 | . . 87 1134 42 Guns 526 | . . . 526 . Cannons 332 | . . . 290 42 Explosions 281 | . . 87 194 . Melee 106 | . . . 106 . Ramming 18 | . . . 18 . Kinetic 802 | . . . 760 42 Thermal 56 | . . . 56 . Explosive 281 | . . 87 194 . Electromagnetic . | . . . . . Impact . | . . . . . Slashing 106 | . . . 106 . Piercing . | . . . . . Highest Corruption 7 | . . . 7 7 Average Corruption 6 | . . . 5 7 Corruption Purged . | . . . . . Corruption Blocked . | . . . . . Effects 37 | . . . 26 11 Message Errors 8 | . . . 4 4 Matter Fused 13 | . . . 10 3 Heat Flow Errors 2 | . . . . 2 Energy Discharges 7 | . . . 5 2 Data Loss (minor) 4 | . . . 4 . Misfires 2 | . . . 2 . Weapon Failures 1 | . . . 1 . Overload Shots . | . . . . . Overflow Damage 38 | . . . 38 . Projectiles . | . . . . . Explosions 38 | . . . 38 . Melee . | . . . . . Knockbacks 4 | . . . 4 . Impact . | . . . . . Kinetic 3 | . . . 3 . Secondary 1 | . . . 1 . Self-Inflicted Damage . | . . . . . Shots . | . . . . . Rammed 2 | . . . 2 . Targets Rammed 2 | . . . 2 . Kicked . | . . . . . Crushed . | . . . . . Highest Temperature 272 | . . 6 90 272 Average Temperature 37 | . . 6 22 65 Received Heat Transfer 558 | . 12 18 528 . Siege Activations . | . . . . . Martial Activations . | . . . . . Shielding Activations . | . . . . . Robots Disrupted . | . . . . . Combat Hostiles . | . . . . . Robots Corrupted . | . . . . . Combat Hostiles . | . . . . . Parts Fried . | . . . . . Impact Corruptions 1 | . . . 1 . Robots Melted . | . . . . . Combat Hostiles . | . . . . . Parts Melted . | . . . . . Heat Transferred 148 | . . . 148 . Parts Sabotaged . | . . . . . Parts Stolen . | . . . . . Parts Stripped . | . . . . . Power Chain Reactions . | . . . . . Alert | -11 -10 -10 -9 -9 ------- Run | Yrd Mat Min Mat Min Maximum Alert Level 1 | . . . 1 . Low Security (%) 64 | . 100 100 41 100 Level 1 35 | . . . 58 . Level 2 . | . . . . . Level 3 . | . . . . . Level 4 . | . . . . . Level 5 . | . . . . . High Security . | . . . . . Max Security . | . . . . . Peak Influence 319 | . . 23 319 104 Initial 104 | . . . . 104 Average 119 | . . 4 182 27 Influence Increases 783 | . . 23 754 6 Destroy 0b10 Robot/C 440 | . . 20 420 . Destroy 0b10 Robot/NC 10 | . . . 5 5 Destroy Leader 110 | . . . 110 . Successful Hack 11 | . . . 11 . Disable Machine 45 | . . . 45 . Destroy Structure 17 | . . 3 13 1 Partial Spotted 60 | . . . 60 . Lose Combat Pursuer 90 | . . . 90 . Influence Decreases 783 | . . 20 488 275 Entered New Map 168 | . . . 3 165 Time Decay 534 | . . 20 404 110 Lost Part 81 | . . . 81 . Squads Dispatched 5 | . . . 5 . Investigation 1 | . . . 1 . Extermination . | . . . . . Reinforcement 4 | . . . 4 . Assault . | . . . . . Garrison . | . . . . . Intercept . | . . . . . Searches Triggered . | . . . . . Construction Impeded . | . . . . . Haulers Reinforced . | . . . . . Active Scanning Responses . | . . . . . Cargo Convoy Interrupts . | . . . . . Stealth | -11 -10 -10 -9 -9 --------- Run | Yrd Mat Min Mat Min Distress Signals 6 | . . . 5 1 Communications Jammed . | . . . . . Distress Signals . | . . . . . Times Spotted 50 | . 2 5 42 1 Peak Tracking Total 9 | . 2 2 9 1 Tactical Retreats 11 | . . 2 9 . ECM-based Alert Blocks 11 | . . 3 8 . Traps | -11 -10 -10 -9 -9 ------- Run | Yrd Mat Min Mat Min Traps Triggered 2 | . . . 2 . Indirectly . | . . . . . Trap Hack Attempts . | . . . . . Triggered . | . . . . . Disarmed . | . . . . . Reprogrammed . | . . . . . Reused . | . . . . . Traps Extracted . | . . . . . Installed . | . . . . . Triggered . | . . . . . Machines | -11 -10 -10 -9 -9 ---------- Run | Yrd Mat Min Mat Min Machines Disabled 3 | . . . 3 . Max in Single Turn 2 | . . . 2 . Machines Repaired . | . . . . . Machines Dismantled . | . . . . . Machines Sabotaged . | . . . . . Overloaded Fab Kills . | . . . . . Hacking | -11 -10 -10 -9 -9 --------- Run | Yrd Mat Min Mat Min Machines Accessed 6 | . . . 6 . Terminals 4 | . . . 4 . Fabricators . | . . . . . Repair Stations . | . . . . . Recycling Units . | . . . . . Scanalyzers 2 | . . . 2 . Garrison Access . | . . . . . Total Hacks 15 | . . . 15 . Successful 9 | . . . 9 . Failed 5 | . . . 5 . Catastrophic 2 | . . . 2 . Database Lockouts 1 | . . . 1 . Manual 5 | . . . 5 . Terminals 9 | . . . 9 . Fabricators . | . . . . . Repair Stations . | . . . . . Recycling Units . | . . . . . Scanalyzers 6 | . . . 6 . Garrison Access . | . . . . . Terminal Hacks 4 | . . . 4 . Record 1 | . . . 1 . Branch Access Points 1 | . . . 1 . Emergency Access Points 1 | . . . 1 . Alert Level 1 | . . . 1 . Fabricator Hacks . | . . . . . Repair Station Hacks . | . . . . . Recycling Unit Hacks . | . . . . . Scanalyzer 5 | . . . 5 . Insert Component 2 | . . . 2 . Analyze 2 | . . . 2 . Retrieve Study 1 | . . . 1 . Garrison Access Hacks . | . . . . . Unauthorized Hacks . | . . . . . Terminals . | . . . . . Fabricators . | . . . . . Repair Stations . | . . . . . Recycling Units . | . . . . . Scanalyzers . | . . . . . Garrison Access . | . . . . . Data Cores Recovered . | . . . . . Used . | . . . . . Hacking Detections 4 | . . . 4 . Full Trace Events 1 | . . . 1 . Feedback Events . | . . . . . Feedback Blocked . | . . . . . Robot Schematics Acquired . | . . . . . Robots Built . | . . . . . Authchips . | . . . . . Time . | . . . . . Total Robot Build Rating . | . . . . . Part Schematics Acquired 2 | . . . 2 . Parts Built . | . . . . . Authchips . | . . . . . Time . | . . . . . Total Part Build Rating . | . . . . . Part Studies Acquired 1 | . . . 1 . Parts Repaired . | . . . . . Time . | . . . . . Parts Recycled . | . . . . . Recycled Matter . | . . . . . Retrieved Matter . | . . . . . Retrieved Components . | . . . . . Parts Scanalyzed 2 | . . . 2 . Part Schematics Acquired 2 | . . . 2 . Parts Damaged 1 | . . . 1 . Bothacking | -11 -10 -10 -9 -9 ------------ Run | Yrd Mat Min Mat Min Used RIF Installer . | . . . . . Robots Hacked 2 | . . . 2 . Non-combat 2 | . . . 2 . Combat . | . . . . . Robot Hacks Applied 3 | . . . 3 . parse_system 2 | . . . 2 . find_recycling 1 | . . . 1 . Relay Couplers Released . | . . . . . Fabnet Peak Effective % . | . . . . . Robots Rewired . | . . . . . Allies Hacked . | . . . . . Hacks Repelled . | . . . . . Allies | -11 -10 -10 -9 -9 -------- Run | Yrd Mat Min Mat Min Total Allies 3 | . . 3 . . Largest Group 3 | . . 3 . . Highest-Rated Group 40 | . . 40 . . Highest-Rated Ally 16 | . . 16 . . Total Orders . | . . . . . Ally Attacks . | . . . . . Total Damage . | . . . . . Kills . | . . . . . Allies Corrupted . | . . . . . Allies Melted . | . . . . . Intel | -11 -10 -10 -9 -9 ------- Run | Yrd Mat Min Mat Min Active Infowar (turns) 1419 | . 12 81 887 439 Sensors 341 | . . . 341 . Seismic 131 | . . . 131 . ECM 1106 | . 12 81 574 439 Robot Analysis Total . | . . . . . Derelict Logs Recovered 1 | . . . . 1 Drone Launches . | . . . . . Drone Recoveries . | . . . . . Exploration | -11 -10 -10 -9 -9 ------------- Run | Yrd Mat Min Mat Min Turns Passed 1578 | . 76 81 963 458 Spaces Moved 1429 | 1 104 205 848 271 Core 24 | . . . . 24 Treads 556 | . . . 309 247 Legs 29 | 1 28 . . . Wheels . | . . . . . Hover . | . . . . . Flight 820 | . 76 205 539 . Fastest Speed 34 | 120 37 37 34 50 Average Speed 87 | 120 60 37 80 154 Slowest Speed 240 | 120 200 37 240 240 Overloaded Moves . | . . . . . Propulsion Burnouts . | . . . . . Robots Hopped 8 | . . 1 7 . Potential Cave-ins 4 | . . . 4 . Cave-ins Triggered 1 | . . . 1 . Exploration Rate (%) 42 | 1 24 56 63 67 Regions Visited 4 Branch Regions 2 Pre-discovered Areas . | . . . . . Known Exits Taken 3 | . 1 1 1 . Unknown Exits Taken 1 | 1 . . . . Scrap Searched 5 | . . 3 . 2 Spaces Dug 11 | . . . 11 . Terrain Destroyed 22 | . . 3 17 2 Melee 9 | . . . 9 . Projectile 4 | . . . 2 2 AOE 9 | . . 3 6 . Terrain Rammed . | . . . . . Walls Destroyed . | . . . . . Machines Disabled . | . . . . . Actions | -11 -10 -10 -9 -9 --------- Run | Yrd Mat Min Mat Min Total 1622 | . 117 208 1003 294 Wait 46 | . . . 37 9 Move 1409 | . 103 202 833 271 Hop 8 | . . 1 7 . Pick Up 10 | . 2 1 7 . Fast Attach 22 | . 5 . 15 2 Attach 10 | . . . 7 3 Detach 5 | . . . 5 . Swap 17 | . . 1 14 2 Drop 24 | . 7 2 14 1 Fire 51 | . . 1 44 6 Melee 18 | . . . 18 . Ram . | . . . . . Kick . | . . . . . Crush 2 | . . . 2 . Escape Stasis . | . . . . . Rewire . | . . . . . Trap . | . . . . . Miscellaneous . | . . . . . Route ------- -11/Scrapyard -10/Materials -10/Mines -9/Materials -9/Mines History --------- Turn | Location | Event 1 | -11/Scrapyard | Discovered new exit (range 0) 1 | -11/Scrapyard | Entered Materials 60 | -10/Materials | Discovered new exit (range 13) 77 | -10/Materials | Identified exit to Mines 77 | -10/Materials | Entered Mines 96 | -10/Mines | Discovered new exit (range 10) 141 | -10/Mines | Identified exit to Materials 150 | -10/Mines | Assisted by bots powering up and referring to "LRC-V3" 158 | -10/Mines | Entered Materials 158 | -9/Materials | Evolved 2 slots: Propulsion x1, Utility x1 312 | -9/Materials | Build established: Mutant 342 | -9/Materials | Crushed by falling debris 457 | -9/Materials | Central database locked down 511 | -9/Materials | Lost 3 parts (1p1n1w) 599 | -9/Materials | Destroyed 7 combat bots 711 | -9/Materials | Identified exit to Mines 927 | -9/Materials | Build established: Scavenger-Mutant 1056 | -9/Materials | Core integrity fell below 50% 1121 | -9/Materials | Entered Mines 1216 | -9/Mines | Learned location of 1 exit from Proximity Caves 1266 | -9/Mines | Excavation squad dispatched 1266 | -9/Mines | A large section of the Mines collapsed 1315 | -9/Mines | A weapon hastily lodged in a ceiling crevice suddenly fell to the ground 1358 | -9/Mines | Build established: Mutant 1561 | -9/Mines | Core integrity fell below 20% 1579 | -9/Mines | Destroyed by YI-UF0 with YI-UF0's Doublenader Last Messages --------------- 01533_ System corrupted: Heat flow error (+158). 01535_ YI-UF0 mumbles something. 01537_ Lgt. Armor Plating destroyed. 01540_ Lgt. Treads destroyed. 01544_ YI-UF0 mumbles something. 01546_ The unstable cave ceiling collapses. 01554_ Imp. Light Cannon destroyed. 01556_ System corrupted: Energy discharge (-90). 01556_ The unstable cave ceiling collapses. 01556_ Lgt. Treads destroyed. 01556_ Slug Cannon destroyed. 01556_ Imp. Ion Engine destroyed. 01559_ YI-UF0 mumbles something. 01559_ The unstable cave ceiling collapses. 01560_ ECM Suite destroyed. 01560_ Sml. Storage Unit destroyed. 01560_ Core Extractor disabled. 01564_ The unstable cave ceiling collapses. 01564_ Core Extractor disabled. 01568_ The unstable cave ceiling collapses. Map ----- +----------------------------------------------------+ | | | | | | | | | | | | | | | | | | | | | | | | | | | | | | | | | ??????????????##?##????????????? | | ???????????### ## ###??????????? | | ??????????## ########???? | | ????????### # #???? | | ?????#### # #???? | | ?????# #???? | | ?????# #???? | | ??#### ### ##???? | | ??# ##???## | | ?## """@" # #???## | | ?# "" " # ##### | | ?## g "" ## | | ??# | | ??# # | | ??# = # | | ??# # # | | ??########### |%= | | ?????????????# * | | ????????????# ### | | ??????????? ####?## | | ??????????% ## ?????# | | ???????? # ### ?????# | | ????????# ###??# ????# | | ?????????###?????? [ ???# # | | ?????????????????# #??# # | | ?????????????????? * ? ## | | ?????????????????? ??####?? | | ?????????????????? # ???????? | | ?????????????????? ? ????????? | | ???????????????????????????????? | | ???????????????????????????????? | | ???????????????????????????????? | | ???????????????????????????????? | | ???????????????????????????????? | +----------------------------------------------------+ Best States ------------- Heat Dissipation 28 Energy Generation 12 Energy Capacity 265 Matter Stores 300 Matter Capacity 300 Sight Range 16 Robot Scan Range 14 Terrain Scan Density 10 ECM Strength 1 Armor Coverage 375 Evasion (%) 71 Recoil Reduction 3 Item Schematics ----------------- Imp. Datajack | -9/Materials | Scanalyzed Imp. Ion Engine | -9/Materials | Scanalyzed Robot Schematics ------------------ None Fabricated ------------ Nothing Repaired ---------- Nothing Studied --------- Flight Unit | -9/Materials | Hacked Alien Tech Used ----------------- None Achievements -------------- Junior Dev Challenges ------------ None Game ------ Seed SuperdenseHypervelocityGuard Manual? 0 Play Time 00:31:36 Cumulative 20.9 hours Start 2026.01.24 @ 15:05:19 End 2026.01.24 @ 20:16:14 Sessions 5 Manual Loads 0 Difficulty Rogue Special Mode None Game No. 34 Rogue 34 Adventurer 0 Explorer 0 Win Type - Total 0 Types 0/0/0/0/0/0/0/0/0/0 Lore% 9 Gallery% 21 Achievement% 16 Wizard Run 0 Options --------- Layout 0 ASCII 0 Keyboard 0 Movement Mouse Keybinds 0 Fullscreen 1 Font 24/Smallcaps Map View 183x50 Zoom Use 0% Tactical HUD 1 Map Filters NONE Filters NONE Steam 1 RUN: 8a204745-83c6-4e3c-85b4-cdc6dcf98889